[Event "*** Titled Tuesday Blitz"]
[Site "Chess.com"]
[Date "2019.07.02"]
[Round "5"]
[White "stoleriu"]
[Black "MateSchmate"]
[Result "1/2-1/2"]
[WhiteElo "2519"]
[BlackElo "2357"]
[TimeControl "180+2"]
[EndTime "14:06:23 PDT"]
[Termination "Game drawn by stalemate"]

1. e4 {[%clk 0:03:01.9]} 1... e6 {[%clk 0:02:59.2]} 2. d4 {[%clk 0:02:59.4]}
2... d5 {[%clk 0:02:47.8]} 3. Nc3 {[%clk 0:02:56.1]} 3... Bb4 {[%clk 0:02:45.9]}
4. exd5 {[%clk 0:02:56.1]} 4... exd5 {[%clk 0:02:43.9]} 5. Bd3 {[%clk
0:02:57.4]} 5... Nf6 {[%clk 0:02:42.7]} 6. Bg5 {[%clk 0:02:56.3]} 6... Be6
{[%clk 0:02:30.8]} 7. Qf3 {[%clk 0:02:55.7]} 7... Be7 {[%clk 0:02:28.8]} 8. Nge2
{[%clk 0:02:53.4]} 8... Nbd7 {[%clk 0:02:26.1]} 9. O-O {[%clk 0:02:52.6]} 9...
h6 {[%clk 0:02:21.8]} 10. Bh4 {[%clk 0:02:52.2]} 10... g5 {[%clk 0:02:11.1]} 11.
Bg3 {[%clk 0:02:45.4]} 11... h5 {[%clk 0:02:11.1]} 12. Be5 {[%clk 0:02:04.8]}
12... g4 {[%clk 0:01:58.1]} 13. Qe3 {[%clk 0:02:02.4]} 13... h4 {[%clk 0:01:51]}
14. Nf4 {[%clk 0:02:00.1]} 14... Nxe5 {[%clk 0:01:45.7]} 15. Qxe5 {[%clk
0:01:51.2]} 15... Bd6 {[%clk 0:01:35.5]} 16. Nxe6 {[%clk 0:01:48.3]} 16... Bxe5
{[%clk 0:01:33.9]} 17. Nxd8 {[%clk 0:01:49.1]} 17... Bxd4 {[%clk 0:01:14.9]} 18.
Nxb7 {[%clk 0:01:50.1]} 18... Rb8 {[%clk 0:01:15]} 19. Rae1+ {[%clk 0:01:45.2]}
19... Kf8 {[%clk 0:01:14.1]} 20. Na5 {[%clk 0:01:38.9]} 20... g3 {[%clk
0:00:56.5]} 21. Nd1 {[%clk 0:01:36.5]} 21... Ng4 {[%clk 0:00:51.9]} 22. Nc6
{[%clk 0:01:14.8]} 22... Bxf2+ {[%clk 0:00:35.7]} 23. Nxf2 {[%clk 0:01:08.4]}
23... gxf2+ {[%clk 0:00:27.6]} 24. Rxf2 {[%clk 0:01:09.4]} 24... Nxf2 {[%clk
0:00:23.8]} 25. Nxb8 {[%clk 0:01:09.6]} 25... Nxd3 {[%clk 0:00:25]} 26. cxd3
{[%clk 0:01:11.5]} 26... Kg7 {[%clk 0:00:26.3]} 27. Nc6 {[%clk 0:01:08.4]} 27...
Rh6 {[%clk 0:00:27.4]} 28. Nd4 {[%clk 0:01:08.7]} 28... Rb6 {[%clk 0:00:28.4]}
29. b3 {[%clk 0:01:09.7]} 29... c5 {[%clk 0:00:28.6]} 30. Nf5+ {[%clk
0:01:10.8]} 30... Kf6 {[%clk 0:00:30.1]} 31. Nxh4 {[%clk 0:01:12]} 31... c4
{[%clk 0:00:31.3]} 32. dxc4 {[%clk 0:01:13.2]} 32... dxc4 {[%clk 0:00:32.2]} 33.
bxc4 {[%clk 0:01:13.7]} 33... Rb2 {[%clk 0:00:34.1]} 34. Rf1+ {[%clk 0:01:12.3]}
34... Kg5 {[%clk 0:00:34.8]} 35. Nf3+ {[%clk 0:01:11.9]} 35... Kf4 {[%clk
0:00:36.3]} 36. Ne1+ {[%clk 0:01:07.5]} 36... Ke3 {[%clk 0:00:36.7]} 37. Rxf7
{[%clk 0:01:08.7]} 37... Rxa2 {[%clk 0:00:37.8]} 38. Rf3+ {[%clk 0:01:09.4]}
38... Ke4 {[%clk 0:00:37.9]} 39. h4 {[%clk 0:01:10.7]} 39... a5 {[%clk
0:00:39.1]} 40. h5 {[%clk 0:01:11.6]} 40... a4 {[%clk 0:00:40.7]} 41. h6 {[%clk
0:01:12.8]} 41... a3 {[%clk 0:00:42]} 42. h7 {[%clk 0:01:14.1]} 42... Ra1 {[%clk
0:00:43]} 43. h8=Q {[%clk 0:01:12.8]} 43... Rxe1+ {[%clk 0:00:43.9]} 44. Kf2
{[%clk 0:01:14]} 44... a2 {[%clk 0:00:45.8]} 45. Kxe1 {[%clk 0:01:15.2]} 45...
a1=Q+ {[%clk 0:00:45.5]} 46. Qxa1 {[%clk 0:01:00.9]} 1/2-1/2

[Event "*** Titled Tuesday Blitz"]
[Site "Chess.com"]
[Date "2019.07.02"]
[Round "5"]
[White "King_of_the_wing"]
[Black "Maili15"]
[Result "0-1"]
[WhiteElo "2149"]
[BlackElo "2253"]
[TimeControl "180+2"]
[EndTime "14:06:24 PDT"]
[Termination "Maili15 won by resignation"]

1. e4 {[%clk 0:03:01.5]} 1... c5 {[%clk 0:03:00.7]} 2. Nf3 {[%clk 0:03:02.4]}
2... d6 {[%clk 0:03:01.7]} 3. d4 {[%clk 0:03:03.6]} 3... cxd4 {[%clk 0:03:03.6]}
4. Nxd4 {[%clk 0:03:04.9]} 4... Nf6 {[%clk 0:03:05.1]} 5. Nc3 {[%clk 0:03:05.9]}
5... a6 {[%clk 0:03:06.5]} 6. Bg5 {[%clk 0:03:01.4]} 6... Nbd7 {[%clk
0:03:04.9]} 7. f4 {[%clk 0:02:59.8]} 7... h6 {[%clk 0:03:04.7]} 8. Bxf6 {[%clk
0:02:58.5]} 8... Nxf6 {[%clk 0:03:04.3]} 9. Qf3 {[%clk 0:02:58.9]} 9... Qc7
{[%clk 0:03:00.9]} 10. O-O-O {[%clk 0:02:58.2]} 10... Bg4 {[%clk 0:03:00.8]} 11.
Qe3 {[%clk 0:02:36.3]} 11... Bxd1 {[%clk 0:03:00.7]} 12. Kxd1 {[%clk 0:02:38.2]}
12... g6 {[%clk 0:02:59.2]} 13. Be2 {[%clk 0:02:33.9]} 13... Bg7 {[%clk
0:02:48.6]} 14. e5 {[%clk 0:02:28.4]} 14... dxe5 {[%clk 0:02:48.3]} 15. fxe5
{[%clk 0:02:30.3]} 15... Rd8 {[%clk 0:02:38.9]} 16. Kc1 {[%clk 0:01:55.1]} 16...
Nd5 {[%clk 0:02:32.8]} 17. Nxd5 {[%clk 0:01:53.5]} 17... Rxd5 {[%clk 0:02:34.7]}
18. Nf3 {[%clk 0:01:20.4]} 18... Bxe5 {[%clk 0:02:31.3]} 19. Kb1 {[%clk
0:01:11.8]} 19... Bg7 {[%clk 0:02:18.3]} 20. Qe4 {[%clk 0:01:01.6]} 20... Rc5
{[%clk 0:02:10.6]} 21. Rd1 {[%clk 0:00:49]} 21... O-O {[%clk 0:02:08.2]} 22. c3
{[%clk 0:00:19.8]} 22... Rc8 {[%clk 0:01:55.3]} 23. Rd3 {[%clk 0:00:16.8]} 23...
b5 {[%clk 0:01:53.4]} 24. Nd4 {[%clk 0:00:12.6]} 24... b4 {[%clk 0:01:51.3]} 25.
Nb3 {[%clk 0:00:05.1]} 25... Rc4 {[%clk 0:01:40.2]} 26. Rd8+ {[%clk 0:00:04.1]}
26... Qxd8 {[%clk 0:01:33]} 27. Bxc4 {[%clk 0:00:05.3]} 27... Qd1+ {[%clk
0:01:31.6]} 28. Nc1 {[%clk 0:00:06.9]} 28... bxc3 {[%clk 0:01:30.9]} 29. bxc3
{[%clk 0:00:03.2]} 29... Rb8+ {[%clk 0:01:27.5]} 30. Bb3 {[%clk 0:00:04]} 30...
Qd2 {[%clk 0:01:06.8]} 31. Qxg6 {[%clk 0:00:03.2]} 31... Rxb3+ {[%clk
0:01:05.5]} 32. Nxb3 {[%clk 0:00:04.9]} 32... Qd1+ {[%clk 0:01:05.7]} 0-1

[Event "*** Titled Tuesday Blitz"]
[Site "Chess.com"]
[Date "2019.07.02"]
[Round "5"]
[White "shnitez"]
[Black "bascheyaro"]
[Result "1-0"]
[WhiteElo "2583"]
[BlackElo "2741"]
[TimeControl "180+2"]
[EndTime "14:06:25 PDT"]
[Termination "shnitez won by checkmate"]

1. e4 {[%clk 0:03:01.9]} 1... e6 {[%clk 0:03:00.6]} 2. Nf3 {[%clk 0:03:00.6]}
2... d5 {[%clk 0:03:02.5]} 3. Nc3 {[%clk 0:03:01.7]} 3... Nf6 {[%clk 0:03:03.5]}
4. e5 {[%clk 0:03:02.5]} 4... Nfd7 {[%clk 0:03:04.7]} 5. d4 {[%clk 0:03:03.9]}
5... c5 {[%clk 0:03:06.2]} 6. dxc5 {[%clk 0:03:05.8]} 6... Nc6 {[%clk
0:03:07.2]} 7. Bf4 {[%clk 0:03:06.9]} 7... h6 {[%clk 0:03:07.5]} 8. Qd2 {[%clk
0:03:02.3]} 8... g5 {[%clk 0:03:06.7]} 9. Bg3 {[%clk 0:02:57.8]} 9... Bxc5
{[%clk 0:03:07.8]} 10. Bb5 {[%clk 0:02:32.2]} 10... Qa5 {[%clk 0:03:07]} 11. O-O
{[%clk 0:02:15]} 11... Bb4 {[%clk 0:03:03.2]} 12. Bxc6 {[%clk 0:02:09.6]} 12...
bxc6 {[%clk 0:03:03.8]} 13. a3 {[%clk 0:02:10.2]} 13... Bxc3 {[%clk 0:03:04.7]}
14. bxc3 {[%clk 0:02:11.4]} 14... Ba6 {[%clk 0:03:03.1]} 15. Rfb1 {[%clk
0:02:06.8]} 15... Nb6 {[%clk 0:03:03.7]} 16. Nd4 {[%clk 0:02:04.9]} 16... Nc4
{[%clk 0:03:04.5]} 17. Qe1 {[%clk 0:02:01.5]} 17... c5 {[%clk 0:03:02.6]} 18.
Nb3 {[%clk 0:02:02.1]} 18... Qc7 {[%clk 0:03:03.6]} 19. Nd2 {[%clk 0:01:57]}
19... h5 {[%clk 0:02:56.7]} 20. Nxc4 {[%clk 0:01:55.7]} 20... Bxc4 {[%clk
0:02:57.9]} 21. h4 {[%clk 0:01:51.6]} 21... gxh4 {[%clk 0:02:57.9]} 22. Bxh4
{[%clk 0:01:52.8]} 22... Rg8 {[%clk 0:02:59.2]} 23. g3 {[%clk 0:01:48.2]} 23...
Kd7 {[%clk 0:02:58.7]} 24. Qe3 {[%clk 0:01:45.9]} 24... Kc6 {[%clk 0:02:57.2]}
25. Rb2 {[%clk 0:01:39]} 25... Rg4 {[%clk 0:02:42.7]} 26. Rab1 {[%clk
0:01:36.7]} 26... d4 {[%clk 0:02:43.7]} 27. cxd4 {[%clk 0:01:27.9]} 27... cxd4
{[%clk 0:02:45.1]} 28. Qf3+ {[%clk 0:01:18.7]} 28... Bd5 {[%clk 0:02:46.3]} 29.
Qe2 {[%clk 0:01:08.8]} 29... Qa5 {[%clk 0:02:44.4]} 30. Rb5 {[%clk 0:01:00.9]}
30... Qc3 {[%clk 0:02:41.3]} 31. Rxd5 {[%clk 0:00:50.7]} 31... Kxd5 {[%clk
0:02:42.6]} 32. Qb5+ {[%clk 0:00:50.9]} 32... Ke4 {[%clk 0:02:43.9]} 33. Qb7+
{[%clk 0:00:51.5]} 33... Kf5 {[%clk 0:02:33.8]} 34. Qxa8 {[%clk 0:00:40.4]}
34... Re4 {[%clk 0:02:34.2]} 35. Qg8 {[%clk 0:00:35.6]} 35... Re1+ {[%clk
0:02:30.4]} 36. Rxe1 {[%clk 0:00:36.3]} 36... Qxe1+ {[%clk 0:02:32.3]} 37. Kg2
{[%clk 0:00:37.2]} 37... Qe4+ {[%clk 0:02:31.1]} 38. Kh2 {[%clk 0:00:37.9]}
38... Kxe5 {[%clk 0:02:28.8]} 39. Qxf7 {[%clk 0:00:36.5]} 39... Qxc2 {[%clk
0:02:29.5]} 40. Bf6+ {[%clk 0:00:34.1]} 40... Kd6 {[%clk 0:02:30.5]} 41. Qe7+
{[%clk 0:00:32.8]} 41... Kc6 {[%clk 0:02:17.3]} 42. Qxe6+ {[%clk 0:00:32.5]}
42... Kb5 {[%clk 0:02:18.5]} 43. Qd5+ {[%clk 0:00:31.2]} 43... Ka4 {[%clk
0:02:18]} 44. Qxd4+ {[%clk 0:00:31.7]} 44... Kxa3 {[%clk 0:02:19.3]} 45. Qxa7+
{[%clk 0:00:32.4]} 45... Kb4 {[%clk 0:02:19.2]} 46. Qb6+ {[%clk 0:00:32.9]}
46... Ka4 {[%clk 0:02:20]} 47. Qa6+ {[%clk 0:00:33.8]} 47... Kb4 {[%clk
0:02:21.1]} 48. Be7+ {[%clk 0:00:34.3]} 48... Kb3 {[%clk 0:02:22.5]} 49. Qa3+
{[%clk 0:00:32.9]} 49... Kc4 {[%clk 0:02:23.5]} 50. Qc5+ {[%clk 0:00:33.6]}
50... Kb3 {[%clk 0:02:25]} 51. Qxc2+ {[%clk 0:00:31.3]} 51... Kxc2 {[%clk
0:02:26.9]} 52. f4 {[%clk 0:00:31.9]} 52... Kd3 {[%clk 0:02:28.1]} 53. f5 {[%clk
0:00:32.9]} 53... Ke4 {[%clk 0:02:30]} 54. f6 {[%clk 0:00:34.2]} 54... Kf5
{[%clk 0:02:31.5]} 55. f7 {[%clk 0:00:35.3]} 55... h4 {[%clk 0:02:33.1]} 56.
gxh4 {[%clk 0:00:34.3]} 56... Kg4 {[%clk 0:02:32.8]} 57. f8=Q {[%clk 0:00:33.4]}
57... Kh5 {[%clk 0:02:34.2]} 58. Qf5+ {[%clk 0:00:32.3]} 58... Kh6 {[%clk
0:02:35.4]} 59. Bf8# {[%clk 0:00:33.5]} 1-0

[Event "*** Titled Tuesday Blitz"]
[Site "Chess.com"]
[Date "2019.07.02"]
[Round "5"]
[White "ethylalcohol"]
[Black "AndrewMcStone"]
[Result "0-1"]
[WhiteElo "2089"]
[BlackElo "2152"]
[TimeControl "180+2"]
[EndTime "14:06:25 PDT"]
[Termination "AndrewMcStone won on time"]

1. d4 {[%clk 0:03:01.9]} 1... Nf6 {[%clk 0:03:00.7]} 2. Nf3 {[%clk 0:03:02.1]}
2... g6 {[%clk 0:03:02.1]} 3. Bf4 {[%clk 0:03:02.4]} 3... Bg7 {[%clk 0:03:02.7]}
4. e3 {[%clk 0:03:03.3]} 4... O-O {[%clk 0:03:03.9]} 5. Be2 {[%clk 0:03:04.1]}
5... c5 {[%clk 0:03:05.3]} 6. c3 {[%clk 0:02:58.4]} 6... d6 {[%clk 0:03:04.2]}
7. h3 {[%clk 0:02:58.4]} 7... Be6 {[%clk 0:03:05.2]} 8. Nbd2 {[%clk 0:02:49.4]}
8... Qb6 {[%clk 0:02:56.4]} 9. Qc2 {[%clk 0:02:32.9]} 9... Nc6 {[%clk
0:02:46.3]} 10. O-O {[%clk 0:02:24.5]} 10... cxd4 {[%clk 0:02:31]} 11. exd4
{[%clk 0:02:17.9]} 11... Rac8 {[%clk 0:02:29]} 12. Nc4 {[%clk 0:01:49.6]} 12...
Qc7 {[%clk 0:01:53]} 13. Ng5 {[%clk 0:01:26.4]} 13... Bxc4 {[%clk 0:01:21.9]}
14. Bxc4 {[%clk 0:01:25.8]} 14... Nxd4 {[%clk 0:01:22.1]} 15. Bxf7+ {[%clk
0:01:02.7]} 15... Rxf7 {[%clk 0:01:17.1]} 16. Qd2 {[%clk 0:00:59.9]} 16... Nc6
{[%clk 0:00:50.9]} 17. Nxf7 {[%clk 0:00:56.6]} 17... Kxf7 {[%clk 0:00:52.8]} 18.
Rfe1 {[%clk 0:00:45]} 18... Qa5 {[%clk 0:00:43]} 19. Bh6 {[%clk 0:00:14.9]}
19... Qf5 {[%clk 0:00:37.8]} 20. Bxg7 {[%clk 0:00:12.7]} 20... Kxg7 {[%clk
0:00:39.7]} 21. Rad1 {[%clk 0:00:11.1]} 21... Ne5 {[%clk 0:00:37.5]} 22. Qd4
{[%clk 0:00:09.9]} 22... b6 {[%clk 0:00:25.2]} 23. f4 {[%clk 0:00:07.3]} 23...
Nc6 {[%clk 0:00:23]} 24. Qe3 {[%clk 0:00:04.1]} 24... Qc5 {[%clk 0:00:21.8]} 0-1

[Event "*** Titled Tuesday Blitz"]
[Site "Chess.com"]
[Date "2019.07.02"]
[Round "5"]
[White "akgod"]
[Black "Karina_Ivanova"]
[Result "1-0"]
[WhiteElo "2216"]
[BlackElo "2183"]
[TimeControl "180+2"]
[EndTime "14:06:26 PDT"]
[Termination "akgod won by checkmate"]

1. d4 {[%clk 0:03:01.9]} 1... Nf6 {[%clk 0:02:56.9]} 2. c4 {[%clk 0:03:02.9]}
2... e6 {[%clk 0:02:57.9]} 3. Nf3 {[%clk 0:03:03.8]} 3... b6 {[%clk 0:02:58.1]}
4. g3 {[%clk 0:03:04.6]} 4... Bb7 {[%clk 0:02:58.7]} 5. Bg2 {[%clk 0:03:05.5]}
5... Be7 {[%clk 0:02:59.6]} 6. O-O {[%clk 0:03:06.4]} 6... O-O {[%clk
0:03:00.7]} 7. Re1 {[%clk 0:03:08.1]} 7... Na6 {[%clk 0:02:51.6]} 8. Nc3 {[%clk
0:03:06.1]} 8... Ne4 {[%clk 0:02:52.2]} 9. Nxe4 {[%clk 0:03:05]} 9... Bxe4
{[%clk 0:02:52.9]} 10. Ne5 {[%clk 0:03:06.3]} 10... Bxg2 {[%clk 0:02:50.9]} 11.
Kxg2 {[%clk 0:03:08.2]} 11... c6 {[%clk 0:02:52.2]} 12. e4 {[%clk 0:02:53.6]}
12... Qc8 {[%clk 0:02:49.2]} 13. Qg4 {[%clk 0:02:50.3]} 13... Bf6 {[%clk
0:02:47.4]} 14. Bh6 {[%clk 0:02:41.6]} 14... d5 {[%clk 0:02:41.1]} 15. Re3
{[%clk 0:01:54.9]} 15... Re8 {[%clk 0:02:32.2]} 16. Rf3 {[%clk 0:01:54.8]} 16...
Bxe5 {[%clk 0:02:17]} 17. dxe5 {[%clk 0:01:54.3]} 17... g6 {[%clk 0:02:18]} 18.
Qf4 {[%clk 0:01:40.3]} 18... f5 {[%clk 0:02:13.9]} 19. exf6 {[%clk 0:01:36.7]}
19... Kf7 {[%clk 0:02:14.6]} 20. e5 {[%clk 0:01:10.4]} 20... dxc4 {[%clk
0:02:07.7]} 21. Qxc4 {[%clk 0:01:09.2]} 21... b5 {[%clk 0:02:08.6]} 22. Qh4
{[%clk 0:01:08.1]} 22... Nc7 {[%clk 0:01:58.9]} 23. Bg7 {[%clk 0:01:04.9]} 23...
h5 {[%clk 0:01:58]} 24. g4 {[%clk 0:00:56.6]} 24... hxg4 {[%clk 0:01:57]} 25.
Qxg4 {[%clk 0:00:58.5]} 25... Rg8 {[%clk 0:01:31.8]} 26. Rg3 {[%clk 0:00:58.2]}
26... Rxg7 {[%clk 0:01:32.6]} 27. fxg7 {[%clk 0:00:56.6]} 27... Qg8 {[%clk
0:01:33.4]} 28. Qxg6+ {[%clk 0:00:56.6]} 28... Ke7 {[%clk 0:01:34.4]} 29. Qf6+
{[%clk 0:00:56]} 29... Kd7 {[%clk 0:01:35.5]} 30. Rd1+ {[%clk 0:00:49.3]} 30...
Nd5 {[%clk 0:01:35.8]} 31. Rg6 {[%clk 0:00:49.5]} 31... Re8 {[%clk 0:01:32.7]}
32. h4 {[%clk 0:00:47.5]} 32... Kc7 {[%clk 0:01:32.4]} 33. Rxd5 {[%clk
0:00:42.8]} 33... cxd5 {[%clk 0:01:32.6]} 34. h5 {[%clk 0:00:44]} 34... d4
{[%clk 0:01:32.7]} 35. h6 {[%clk 0:00:44.9]} 35... d3 {[%clk 0:01:33.3]} 36. h7
{[%clk 0:00:40.5]} 36... Qxh7 {[%clk 0:01:34]} 37. Qf7+ {[%clk 0:00:41.6]} 37...
Kb6 {[%clk 0:01:31.7]} 38. Qxe8 {[%clk 0:00:40.2]} 38... d2 {[%clk 0:01:32.6]}
39. Qxe6+ {[%clk 0:00:38.8]} 39... Ka5 {[%clk 0:01:32.9]} 40. Qa6+ {[%clk
0:00:30.4]} 40... Kb4 {[%clk 0:01:33.4]} 41. a3+ {[%clk 0:00:31.9]} 41... Kb3
{[%clk 0:01:33.8]} 42. Qxb5+ {[%clk 0:00:33.1]} 42... Ka2 {[%clk 0:01:34.3]} 43.
Qd5+ {[%clk 0:00:33.6]} 43... Ka1 {[%clk 0:01:35.1]} 44. g8=Q {[%clk 0:00:34.6]}
44... d1=Q {[%clk 0:01:32.7]} 45. Qxd1+ {[%clk 0:00:34.9]} 45... Kxb2 {[%clk
0:01:31.3]} 46. Qxh7 {[%clk 0:00:34.6]} 46... Ka2 {[%clk 0:01:31.4]} 47. Qb7
{[%clk 0:00:35.3]} 47... Kxa3 {[%clk 0:01:31.7]} 48. Qdb1 {[%clk 0:00:36.6]}
48... a5 {[%clk 0:01:31.4]} 49. Q7b3# {[%clk 0:00:37.4]} 1-0

[Event "*** Titled Tuesday Blitz"]
[Site "Chess.com"]
[Date "2019.07.02"]
[Round "5"]
[White "bluejay1897"]
[Black "CarrotsandPizza"]
[Result "0-1"]
[WhiteElo "2241"]
[BlackElo "2291"]
[TimeControl "180+2"]
[EndTime "14:06:33 PDT"]
[Termination "CarrotsandPizza won by resignation"]

1. Nf3 {[%clk 0:01:54.6]} 1... Nf6 {[%clk 0:03:00]} 2. g3 {[%clk 0:01:54.9]}
2... g6 {[%clk 0:03:01.4]} 3. b3 {[%clk 0:01:53.8]} 3... Bg7 {[%clk 0:03:03.3]}
4. Bb2 {[%clk 0:01:55]} 4... a5 {[%clk 0:03:03.4]} 5. a4 {[%clk 0:01:52.7]} 5...
O-O {[%clk 0:03:03.7]} 6. Bg2 {[%clk 0:01:53.5]} 6... d6 {[%clk 0:03:05.2]} 7.
d4 {[%clk 0:01:54.5]} 7... Nc6 {[%clk 0:03:05]} 8. O-O {[%clk 0:01:54.2]} 8...
e5 {[%clk 0:03:05.6]} 9. Nbd2 {[%clk 0:01:54.2]} 9... e4 {[%clk 0:03:04.5]} 10.
Ne1 {[%clk 0:01:50.9]} 10... e3 {[%clk 0:03:01.5]} 11. fxe3 {[%clk 0:01:48.1]}
11... Ng4 {[%clk 0:03:01.7]} 12. Rf3 {[%clk 0:01:49.3]} 12... Re8 {[%clk
0:02:57.2]} 13. Nf1 {[%clk 0:01:50.1]} 13... Bh6 {[%clk 0:02:26.3]} 14. Bc1
{[%clk 0:01:41.8]} 14... Nf6 {[%clk 0:02:24.2]} 15. Nd3 {[%clk 0:01:22.6]} 15...
Bg4 {[%clk 0:02:12.2]} 16. Rf2 {[%clk 0:01:17.2]} 16... Ne4 {[%clk 0:02:12.3]}
17. Bxe4 {[%clk 0:01:18.1]} 17... Rxe4 {[%clk 0:02:12.8]} 18. Nf4 {[%clk
0:01:13.1]} 18... Ne7 {[%clk 0:01:48.7]} 19. Qd3 {[%clk 0:01:12.3]} 19... Bf5
{[%clk 0:01:40]} 20. Qb5 {[%clk 0:01:11.9]} 20... Qc8 {[%clk 0:01:06]} 21. Nd2
{[%clk 0:01:07.1]} 21... Rxe3 {[%clk 0:01:06.6]} 22. Nc4 {[%clk 0:00:48.5]}
22... Re4 {[%clk 0:00:58.6]} 23. c3 {[%clk 0:00:43.2]} 23... c6 {[%clk
0:00:55.4]} 24. Qb6 {[%clk 0:00:40.7]} 24... Qd7 {[%clk 0:00:56.4]} 25. Nxa5
{[%clk 0:00:34.7]} 25... Ra6 {[%clk 0:00:43.3]} 26. Qb4 {[%clk 0:00:33.9]} 26...
c5 {[%clk 0:00:44.7]} 27. Qb5 {[%clk 0:00:35.2]} 27... cxd4 {[%clk 0:00:34.5]}
28. cxd4 {[%clk 0:00:36.1]} 28... Qxb5 {[%clk 0:00:33.8]} 29. axb5 {[%clk
0:00:36.6]} 29... Rb6 {[%clk 0:00:35.3]} 30. Nc4 {[%clk 0:00:35.7]} 30... Rxb5
{[%clk 0:00:36.7]} 31. Nxd6 {[%clk 0:00:37]} 31... Rxb3 {[%clk 0:00:38.6]} 32.
Nxe4 {[%clk 0:00:38.1]} 32... Bxe4 {[%clk 0:00:40.4]} 33. Ra8+ {[%clk
0:00:35.8]} 33... Bf8 {[%clk 0:00:39.6]} 34. Rf3 {[%clk 0:00:35.3]} 34... Rb1
{[%clk 0:00:39.2]} 35. Rf1 {[%clk 0:00:36]} 35... b5 {[%clk 0:00:40.3]} 36. Nd3
{[%clk 0:00:37.1]} 36... Bxa8 {[%clk 0:00:40.4]} 37. Bg5 {[%clk 0:00:32.6]}
37... Rxf1+ {[%clk 0:00:40.1]} 38. Kxf1 {[%clk 0:00:34.5]} 38... Nf5 {[%clk
0:00:40.1]} 0-1

[Event "*** Titled Tuesday Blitz"]
[Site "Chess.com"]
[Date "2019.07.02"]
[Round "5"]
[White "Supernotar"]
[Black "Barrelius"]
[Result "0-1"]
[WhiteElo "2600"]
[BlackElo "2566"]
[TimeControl "180+2"]
[EndTime "14:06:34 PDT"]
[Termination "Barrelius won by resignation"]

1. d4 {[%clk 0:02:59.5]} 1... d5 {[%clk 0:03:01.2]} 2. c4 {[%clk 0:03:00.8]}
2... e6 {[%clk 0:03:00.5]} 3. Nf3 {[%clk 0:03:01.6]} 3... Nf6 {[%clk 0:03:01.4]}
4. e3 {[%clk 0:03:02.5]} 4... Be7 {[%clk 0:03:00.7]} 5. Nbd2 {[%clk 0:03:03.5]}
5... O-O {[%clk 0:03:01.7]} 6. Bd3 {[%clk 0:03:03.8]} 6... b6 {[%clk 0:03:02.6]}
7. O-O {[%clk 0:03:04.5]} 7... Ba6 {[%clk 0:03:01.8]} 8. Qe2 {[%clk 0:02:59.3]}
8... c5 {[%clk 0:03:00.3]} 9. b3 {[%clk 0:02:53.7]} 9... Nbd7 {[%clk 0:02:53.5]}
10. Bb2 {[%clk 0:02:54.4]} 10... Rc8 {[%clk 0:02:51.5]} 11. Rac1 {[%clk
0:02:53.9]} 11... cxd4 {[%clk 0:02:46.8]} 12. Bxd4 {[%clk 0:02:51.7]} 12... Ba3
{[%clk 0:02:43.5]} 13. Rcd1 {[%clk 0:02:47.3]} 13... Qe7 {[%clk 0:02:42.5]} 14.
cxd5 {[%clk 0:02:43.5]} 14... Bxd3 {[%clk 0:02:42.9]} 15. Qxd3 {[%clk
0:02:42.8]} 15... e5 {[%clk 0:02:36.3]} 16. Bxe5 {[%clk 0:02:11.5]} 16... Nxe5
{[%clk 0:02:36.7]} 17. Nxe5 {[%clk 0:02:12.7]} 17... Qxe5 {[%clk 0:02:38.2]} 18.
Nc4 {[%clk 0:02:13.9]} 18... Rxc4 {[%clk 0:02:28.5]} 19. bxc4 {[%clk 0:02:14.5]}
19... Bd6 {[%clk 0:02:28.2]} 20. g3 {[%clk 0:02:06.8]} 20... h5 {[%clk 0:02:26]}
21. Rfe1 {[%clk 0:01:57.3]} 21... h4 {[%clk 0:02:20.8]} 22. e4 {[%clk
0:01:49.9]} 22... hxg3 {[%clk 0:02:19.4]} 23. hxg3 {[%clk 0:01:48.8]} 23... Qg5
{[%clk 0:02:05.3]} 24. Kf1 {[%clk 0:01:40.7]} 24... Bc5 {[%clk 0:01:59]} 25. f4
{[%clk 0:01:30]} 25... Qh5 {[%clk 0:01:56.1]} 26. Kg2 {[%clk 0:01:06.2]} 26...
Ng4 {[%clk 0:01:44.8]} 27. Rd2 {[%clk 0:00:58.8]} 27... g5 {[%clk 0:01:04.8]}
28. Rh1 {[%clk 0:00:23.1]} 28... Ne3+ {[%clk 0:00:58.6]} 29. Kg1 {[%clk
0:00:23.5]} 29... Qf3 {[%clk 0:00:56.4]} 30. Rh3 {[%clk 0:00:05.2]} 30... Ng4+
{[%clk 0:00:41.1]} 31. Qd4 {[%clk 0:00:03.6]} 31... Bxd4+ {[%clk 0:00:41.6]} 0-1

[Event "*** Titled Tuesday Blitz"]
[Site "Chess.com"]
[Date "2019.07.02"]
[Round "5"]
[White "MagnusSeinFanboy"]
[Black "johnathan113"]
[Result "0-1"]
[WhiteElo "2478"]
[BlackElo "2686"]
[TimeControl "180+2"]
[EndTime "14:06:36 PDT"]
[Termination "johnathan113 won by resignation"]

1. d4 {[%clk 0:03:01.9]} 1... Nf6 {[%clk 0:02:56.4]} 2. c4 {[%clk 0:03:02.4]}
2... g6 {[%clk 0:02:56.8]} 3. Nc3 {[%clk 0:03:03.1]} 3... Bg7 {[%clk 0:02:58.7]}
4. e4 {[%clk 0:03:04]} 4... d6 {[%clk 0:02:52.1]} 5. Nf3 {[%clk 0:03:02]} 5...
O-O {[%clk 0:02:51.8]} 6. Be2 {[%clk 0:03:03.5]} 6... Nbd7 {[%clk 0:02:36.5]} 7.
O-O {[%clk 0:03:03.7]} 7... e5 {[%clk 0:02:33.6]} 8. Be3 {[%clk 0:03:04.4]} 8...
c6 {[%clk 0:02:30.8]} 9. d5 {[%clk 0:03:03.7]} 9... c5 {[%clk 0:02:28.9]} 10.
Ne1 {[%clk 0:03:04.4]} 10... Ne8 {[%clk 0:02:26.8]} 11. g4 {[%clk 0:03:01.9]}
11... Bf6 {[%clk 0:02:20.1]} 12. Qd2 {[%clk 0:03:00]} 12... Ng7 {[%clk
0:02:21.4]} 13. Nd3 {[%clk 0:02:36.3]} 13... Bh4 {[%clk 0:01:57.2]} 14. f4
{[%clk 0:02:13.7]} 14... exf4 {[%clk 0:01:56.1]} 15. Bxf4 {[%clk 0:02:14.7]}
15... Qe7 {[%clk 0:01:49.8]} 16. Nb5 {[%clk 0:02:14.5]} 16... Ne8 {[%clk
0:01:49.7]} 17. Bf3 {[%clk 0:02:06.5]} 17... f6 {[%clk 0:01:43.4]} 18. Nc3
{[%clk 0:01:28.2]} 18... Bg5 {[%clk 0:01:29.6]} 19. Bxg5 {[%clk 0:01:26.5]}
19... fxg5 {[%clk 0:01:31.5]} 20. e5 {[%clk 0:01:03.3]} 20... Nxe5 {[%clk
0:01:31.5]} 21. Rae1 {[%clk 0:00:57.9]} 21... Rxf3 {[%clk 0:01:18.6]} 22. Nxe5
{[%clk 0:00:38]} 22... Rxf1+ {[%clk 0:01:18.2]} 23. Rxf1 {[%clk 0:00:36]} 23...
dxe5 {[%clk 0:01:15]} 24. Ne4 {[%clk 0:00:32]} 24... Bxg4 {[%clk 0:01:05.1]} 25.
d6 {[%clk 0:00:23.1]} 25... Qe6 {[%clk 0:00:43.7]} 26. Qxg5 {[%clk 0:00:17.5]}
26... Bf5 {[%clk 0:00:44.5]} 27. Nxc5 {[%clk 0:00:14.3]} 27... Qxd6 {[%clk
0:00:44.2]} 28. Rxf5 {[%clk 0:00:13.8]} 28... Qxc5+ {[%clk 0:00:45.3]} 29. Rf2
{[%clk 0:00:15.4]} 29... Nd6 {[%clk 0:00:40.4]} 30. Qf6 {[%clk 0:00:14.6]} 30...
Ne4 {[%clk 0:00:39]} 31. Qf7+ {[%clk 0:00:07.6]} 31... Kh8 {[%clk 0:00:39.3]}
32. Qxb7 {[%clk 0:00:06.5]} 32... Qxf2+ {[%clk 0:00:40]} 0-1